Workbook

Sheet Readme
D2: Chromium Connect | J2: Doc | K2: CG000156
D3: Pooling Worksheet | J3: Rev | K3: C
A5: Scope
B6: Use this spreadsheet to calculate the library dilutions and volumes required to assemble a final library pool for sequencing using component libraries generated from the Chromium Connect Instrument. Save and export data to a csv file using the "8 Library Pool" tab in this spreadsheet. If you have your own LIMS system, use CG000310 instead.
A8: Associated Documents
B9: Refer to | D9: Description
B10: CG000180 | D10: Chromium Connect Instrument User Guide
B11: CG000286 | D11: Chromium Next GEM Automated Single Cell 3' Reagent Kits v3.1 User Guide
B12: CG000384 | D12: Chromium Next GEM Automated Single Cell 5' Reagent Kits v2 User Guide
B13: CG000310 | D13: ChromiumConnect_Pooling-8Libraries_InputSampleInfo_Template.csv
A15: Required Information
B16: 1. | C16: Library IDs
B17: 2. | C17: Average Library Size (bp)
B18: 3. | C18: Library Concentration (nM)
B19: 4. | C19: Cells/sample
B20: 5. | C20: Reads/cell
B21: 6. | C21: Target Library Pool Concentration
B22: 7. | C22: Target Library Pool Volume
A24: Considerations
B25: • | C25: Enter the information above into cells highlighted in blue for each library in the "Chromium Connect Library Pool" tab. Enter the targeted concentration and volume of the final library pool.
B26: • | C26: The "Example Library Pool" tab has example data to demonstrate what final dilutions and volumes may look like.
B27: • | C27: To ensure that volumes adhere to conditions mentioned at the top of the sheet, manually adjust the Dilution Factor for each library using whole integers (1-10).
B28: • | C28: Other values in red font may need adjustment to achieve final volumes that adhere to all conditions.
B29: • | C29: If final volumes are do not adhere to conditions, adjust Target Pool Concentration, Target Pool Volume, Dilution Factor, Cells/sample, or Reads/cell.
B30: • | C30: Input values in green boxes onto the Chromium Connect touchscreen.
B31: • | C31: To omit a sample from analysis, enter "0" in the Reads/cell column.
A33: Contact
B34: support@10xgenomics.com
B35: 10x Genomics
B36: 6230 Stoneridge Mall Road
B37: Pleasanton, CA 94588 USA
B39: © 2021 10X Genomics, Inc. FOR RESEARCH USE ONLY. NOT FOR USE IN DIAGNOSTIC PROCEDURES.

Sheet Chromium Connect Library Pool
B1: Chromium Connect Pooling Worksheet | 10xgenomics.com
B2: After entering library information below, click this button to autofill Library Pool tabs ----------------------------------------------------------------------------------
B3: Conditions | H3: Legend
B4: • Sample Transfer Volume must be between 3-20 µl | H4: Blue | I4: Fields where data must be entered manually | M4: Target Pool Conc =_ | P4: nM
B5: • Pool Diluent Volume cannot be negative | H5: Green | I5: Volumes to enter on Chromium Connect | M5: Target Pool Volume =_ | P5: µl
B6: • Target Pool Volume must be between 50-300 µl | H6: Red | I6: Cannot proceed without changing the value
B7: • Dilution factors must be integers between 1-10 | H7: Red Text | I7: Value may need adjustment
B8: • Sample Transfer Volume for diluted samples cannot be above Total Dilution Volume | H8: Pink | I8: Changed from default
M10: Intermediate Dilution on Deck
B11: Library ID | C11: Average Library Size (bp) | D11: Prorated Size | E11: Library Concentration (nM) | F11: Dilution Factor | G11: Working concentration (nM) | H11: Cells/ Sample | I11: Reads/Cell (enter "0" to omit sample) | J11: Reads/ Sample | K11: Fraction of Total Pool Reads | L11: Individual Library Concentration (nM) | M11: Library Dilution Volume (µl) | N11: Diluent Dilution Volume (µl) | O11: Total Volume (µl) | P11: Final Transfer Volume (µl)
D12: =C12*K12 ->  | F12: 1 | G12: =E12/F12 -> 0 | J12: =H12*I12 -> 0 | K12: =J12/$J$21 ->  | L12: =K12*O$4 ->  | M12: =VLOOKUP($F12,$B$24:$E$34,2) -> 0 | N12: =VLOOKUP($F12,$B$24:$E$34,3) -> 0 | O12: =M12+N12 -> 0 | P12: =($O$5*L12)/G12 -> 
F13: 1 | G13: 0 | J13: 0 | M13: 0 | N13: 0 | O13: 0
F14: 1 | G14: 0 | J14: 0 | M14: 0 | N14: 0 | O14: 0
F15: 1 | G15: 0 | J15: 0 | M15: 0 | N15: 0 | O15: 0
F16: 1 | G16: 0 | J16: 0 | M16: 0 | N16: 0 | O16: 0
F17: 1 | G17: 0 | J17: 0 | M17: 0 | N17: 0 | O17: 0
F18: 1 | G18: 0 | J18: 0 | M18: 0 | N18: 0 | O18: 0
F19: 1 | G19: 0 | J19: 0 | M19: 0 | N19: 0 | O19: 0
B21: Pro-rated size (bp) for__. pool level quantification =_ | D21: =SUM(D12:D19) ->  | H21: Total Reads =_ | J21: =SUM(J12:J19) -> 0 | K21: =SUM(K12:K19) ->  | L21: Total Sample Volume = | P21: =SUM(P12:P19) -> 
L22: Pool Diluent Volume = | P22: =O5-P21 -> 
B23: Dilution Table - Do Not Modify
B24: Dilution Factor | C24: Sample Volume | D24: Diluent Volume | E24: Total Volume
B25: 1 | C25: 0 | D25: 0 | E25: =B25*C25 -> 0
B26: 2 | C26: 10 | D26: =E26-C26 -> 10 | E26: 20
B27: 3 | C27: 7 | D27: 14 | E27: 21
B28: 4 | C28: 5 | D28: 15 | E28: 20
B29: 5 | C29: 5 | D29: 20 | E29: 25
B30: 6 | C30: 5 | D30: 25 | E30: 30
B31: 7 | C31: 5 | D31: 30 | E31: 35
B32: 8 | C32: 5 | D32: 35 | E32: 40
B33: 9 | C33: 5 | D33: 40 | E33: 45
B34: 10 | C34: 5 | D34: 45 | E34: 50

Sheet Example Library Pool
B1: Chromium Connect Pooling Worksheet | 10xgenomics.com
B3: Conditions | H3: Legend
B4: • Sample Transfer Volume must be between 3-20 µl | H4: Blue | I4: Fields where data must be entered manually | M4: Target Pool Conc =_ | O4: 5 | P4: nM
B5: • Pool Diluent Volume cannot be negative | H5: Green | I5: Volumes to enter on Chromium Connect | M5: Target Pool Volume =_ | O5: 100 | P5: uL
B6: • Target Pool Volume must be between 50-300 µl | H6: Red | I6: Cannot proceed without changing the value
B7: • Dilution factors must be integers between 1-10 | H7: Red Text | I7: Value may need adjustment
B8: • Sample Transfer Volume for diluted samples cannot be above Total Dilution Volume | H8: Pink | I8: Changed from default
M10: Intermediate Dilution on Deck
B11: Library ID | C11: Average Library Size (bp) | D11: Prorated Size | E11: Library Concentration (nM) | F11: Dilution Factor | G11: Working concentration (nM) | H11: Cells/ Sample | I11: Reads/Cell (enter "0" to omit sample) | J11: Reads/ Sample | K11: Fraction of Total Pool Reads | L11: Individual Library Concentration (nM) | M11: Library Dilution Volume (µl) | N11: Diluent Dilution Volume (µl) | O11: Total Volume (µl) | P11: Final Transfer Volume (µl)
B12: PHX309_1-1 | C12: 428 | D12: =C12*K12 -> 53.5 | E12: 15.18905 | F12: 1 | G12: =E12/F12 -> 15.18905 | H12: 5000 | I12: 60000 | J12: =H12*I12 -> 300000000 | K12: =J12/$J$21 -> 0.125 | L12: =K12*O$4 -> 0.625 | M12: =VLOOKUP($F12,$B$24:$E$34,2) -> 0 | N12: =VLOOKUP($F12,$B$24:$E$34,3) -> 0 | O12: =M12+N12 -> 0 | P12: =($O$5*L12)/G12 -> 4.114806391
B13: PHX309_1-2 | C13: 436 | D13: 54.5 | E13: 40 | F13: 2 | G13: 20 | H13: 5000 | I13: 60000 | J13: 300000000 | K13: 0.125 | L13: 0.625 | M13: 10 | N13: 10 | O13: 20 | P13: 3.125
B14: PHX309_1-3 | C14: 455 | D14: 56.875 | E14: 14.09477508 | F14: 1 | G14: 14.09477508 | H14: 5000 | I14: 60000 | J14: 300000000 | K14: 0.125 | L14: 0.625 | M14: 0 | N14: 0 | O14: 0 | P14: 4.434267283
B15: PHX309_1-4 | C15: 444 | D15: 55.5 | E15: 60 | F15: 3 | G15: 20 | H15: 5000 | I15: 60000 | J15: 300000000 | K15: 0.125 | L15: 0.625 | M15: 7 | N15: 14 | O15: 21 | P15: 3.125
B16: PHX309_1-5 | C16: 433 | D16: 54.125 | E16: 5 | F16: 1 | G16: 5 | H16: 5000 | I16: 60000 | J16: 300000000 | K16: 0.125 | L16: 0.625 | M16: 0 | N16: 0 | O16: 0 | P16: 12.5
B17: PHX309_1-6 | C17: 427 | D17: 53.375 | E17: 15.84859329 | F17: 1 | G17: 15.84859329 | H17: 5000 | I17: 60000 | J17: 300000000 | K17: 0.125 | L17: 0.625 | M17: 0 | N17: 0 | O17: 0 | P17: 3.943567662
B18: PHX309_1-7 | C18: 429 | D18: 53.625 | E18: 4 | F18: 1 | G18: 4 | H18: 5000 | I18: 60000 | J18: 300000000 | K18: 0.125 | L18: 0.625 | M18: 0 | N18: 0 | O18: 0 | P18: 15.625
B19: PHX309_1-8 | C19: 428 | D19: 53.5 | E19: 14.80304014 | F19: 1 | G19: 14.80304014 | H19: 5000 | I19: 60000 | J19: 300000000 | K19: 0.125 | L19: 0.625 | M19: 0 | N19: 0 | O19: 0 | P19: 4.22210569
B21: Pro-rated size (bp) for__. pool level quantification =_ | D21: =SUM(D12:D19) -> 435 | H21: Total Reads =_ | J21: =SUM(J12:J19) -> 2400000000 | K21: =SUM(K12:K19) -> 1 | L21: Total Sample Volume = | P21: =SUM(P12:P19) -> 51.08974703
L22: Pool Diluent Volume = | P22: =O5-P21 -> 48.91025297
B23: Dilution Table - Do Not Modify
B24: Dilution Factor | C24: Sample Volume | D24: Diluent Volume | E24: Total Volume
B25: 1 | C25: 0 | D25: 0 | E25: =B25*C25 -> 0
B26: 2 | C26: 10 | D26: =E26-C26 -> 10 | E26: 20
B27: 3 | C27: 7 | D27: 14 | E27: 21
B28: 4 | C28: 5 | D28: 15 | E28: 20
B29: 5 | C29: 5 | D29: 20 | E29: 25
B30: 6 | C30: 5 | D30: 25 | E30: 30
B31: 7 | C31: 5 | D31: 30 | E31: 35
B32: 8 | C32: 5 | D32: 35 | E32: 40
B33: 9 | C33: 5 | D33: 40 | E33: 45
B34: 10 | C34: 5 | D34: 45 | E34: 50
